[Event "Late-Titled-Tuesday-Blitz-October-17-2023"]
[Site "Chess.com"]
[Date "2023.10.17"]
[Round "10"]
[White "Laico"]
[Black "Nekoo04"]
[Result "1-0"]
[WhiteElo "2431"]
[BlackElo "2268"]
[TimeControl "180+1"]
[EndTime "15:50:09 PDT"]
[Termination "Laico won on time"]

1. e4 {[%clk 0:02:53.8]} 1... c5 {[%clk 0:02:50.4]} 2. Nc3 {[%clk 0:02:53.9]}
2... Nc6 {[%clk 0:02:49.9]} 3. f4 {[%clk 0:02:54.5]} 3... g6 {[%clk 0:02:46.8]}
4. Nf3 {[%clk 0:02:55]} 4... Bg7 {[%clk 0:02:47.4]} 5. Bb5 {[%clk 0:02:55.7]}
5... Nd4 {[%clk 0:02:46.6]} 6. O-O {[%clk 0:02:56.3]} 6... Nxb5 {[%clk
0:02:39.4]} 7. Nxb5 {[%clk 0:02:57.2]} 7... d6 {[%clk 0:02:36.3]} 8. d3 {[%clk
0:02:57]} 8... Nf6 {[%clk 0:02:34.3]} 9. Nc3 {[%clk 0:02:57.2]} 9... O-O {[%clk
0:02:33]} 10. Qe1 {[%clk 0:02:57.7]} 10... Bg4 {[%clk 0:02:19.1]} 11. Qh4 {[%clk
0:02:57]} 11... Bxf3 {[%clk 0:02:17.7]} 12. Rxf3 {[%clk 0:02:57.9]} 12... Rb8
{[%clk 0:01:59.8]} 13. f5 {[%clk 0:02:58]} 13... e6 {[%clk 0:01:48.8]} 14. Bg5
{[%clk 0:02:54.3]} 14... h6 {[%clk 0:01:34.7]} 15. Bxh6 {[%clk 0:02:53.5]} 15...
Nh5 {[%clk 0:00:46.6]} 16. Bg5 {[%clk 0:02:36.1]} 16... f6 {[%clk 0:00:44.6]}
17. fxg6 {[%clk 0:02:35.6]} 17... fxg5 {[%clk 0:00:39.8]} 18. Qxh5 {[%clk
0:02:19.9]} 18... Rxf3 {[%clk 0:00:37.8]} 19. Qxf3 {[%clk 0:02:18.7]} 19... Bd4+
{[%clk 0:00:14]} 20. Kh1 {[%clk 0:02:18.3]} 20... Qf6 {[%clk 0:00:14]} 21. Qh5
{[%clk 0:02:15.6]} 21... Qh8 {[%clk 0:00:08.6]} 22. Qxg5 {[%clk 0:02:14.4]}
22... Be5 {[%clk 0:00:09]} 23. h3 {[%clk 0:02:08.7]} 23... Rf8 {[%clk 0:00:09]}
24. Qg4 {[%clk 0:02:04.4]} 24... Rf6 {[%clk 0:00:05.7]} 25. Ne2 {[%clk
0:01:50.9]} 25... Qh6 {[%clk 0:00:05.3]} 26. Kg1 {[%clk 0:01:27.9]} 26... Bxb2
{[%clk 0:00:02.7]} 27. Rb1 {[%clk 0:01:25.8]} 27... Rxg6 {[%clk 0:00:02.9]} 28.
Qf3 {[%clk 0:01:20.7]} 28... Rf6 {[%clk 0:00:02.1]} 29. Qg3+ {[%clk 0:01:20.9]}
29... Rg6 {[%clk 0:00:02]} 30. Qxd6 {[%clk 0:01:20.1]} 30... Bf6 {[%clk
0:00:01]} 31. Rxb7 {[%clk 0:01:09.3]} 1-0

[Event "Late-Titled-Tuesday-Blitz-October-17-2023"]
[Site "Chess.com"]
[Date "2023.10.17"]
[Round "10"]
[White "C_K_G"]
[Black "OLDTERMINATOR"]
[Result "1-0"]
[WhiteElo "1890"]
[BlackElo "1640"]
[TimeControl "180+1"]
[EndTime "15:50:18 PDT"]
[Termination "C_K_G won on time"]

1. e4 {[%clk 0:02:59]} 1... e6 {[%clk 0:02:32.4]} 2. Nf3 {[%clk 0:02:58.4]} 2...
d5 {[%clk 0:02:32.1]} 3. Nc3 {[%clk 0:02:59.3]} 3... Nf6 {[%clk 0:02:28.9]} 4.
e5 {[%clk 0:02:58.8]} 4... Nfd7 {[%clk 0:02:28.3]} 5. d4 {[%clk 0:02:59.4]} 5...
c5 {[%clk 0:02:28.2]} 6. Bg5 {[%clk 0:03:00]} 6... Qb6 {[%clk 0:02:21.9]} 7.
dxc5 {[%clk 0:03:00]} 7... Bxc5 {[%clk 0:02:19.9]} 8. Qd2 {[%clk 0:03:00.6]}
8... Qxb2 {[%clk 0:02:03.2]} 9. Rb1 {[%clk 0:02:58.2]} 9... Qa3 {[%clk
0:02:02.3]} 10. Nb5 {[%clk 0:02:55.2]} 10... Qxa2 {[%clk 0:01:51.3]} 11. Rc1
{[%clk 0:02:50]} 11... Na6 {[%clk 0:01:42.7]} 12. Bd3 {[%clk 0:02:19.2]} 12...
Bb4 {[%clk 0:01:29.6]} 13. Nd6+ {[%clk 0:01:54.3]} 13... Kf8 {[%clk 0:01:04.8]}
14. c3 {[%clk 0:01:52.2]} 14... Qxd2+ {[%clk 0:01:02.8]} 15. Bxd2 {[%clk
0:01:50.5]} 15... Bxd6 {[%clk 0:00:58.8]} 16. exd6 {[%clk 0:01:51.4]} 16... Nac5
{[%clk 0:00:54.7]} 17. Bc2 {[%clk 0:01:47.4]} 17... f6 {[%clk 0:00:45.8]} 18.
O-O {[%clk 0:01:46.7]} 18... Kf7 {[%clk 0:00:44.9]} 19. Rfe1 {[%clk 0:01:35.6]}
19... Nb6 {[%clk 0:00:30.3]} 20. Be3 {[%clk 0:01:31.7]} 20... Ncd7 {[%clk
0:00:23.3]} 21. Nd4 {[%clk 0:01:24.8]} 21... Nc4 {[%clk 0:00:18.8]} 22. Nb5
{[%clk 0:01:18.7]} 22... Nxe3 {[%clk 0:00:16.8]} 23. Rxe3 {[%clk 0:01:18.9]}
23... a6 {[%clk 0:00:16.4]} 24. Nc7 {[%clk 0:01:18.3]} 24... Ne5 {[%clk
0:00:11.3]} 25. Nxa8 {[%clk 0:01:16.8]} 25... Bd7 {[%clk 0:00:06]} 26. Nc7
{[%clk 0:01:09.2]} 26... Nc4 {[%clk 0:00:03.8]} 27. Ree1 {[%clk 0:01:07.1]}
27... Nxd6 {[%clk 0:00:03.7]} 28. Bb3 {[%clk 0:01:05.7]} 28... Rc8 {[%clk
0:00:03.2]} 29. Nxd5 {[%clk 0:00:59.5]} 29... exd5 {[%clk 0:00:02]} 30. Bxd5+
{[%clk 0:01:00.4]} 1-0

[Event "Late-Titled-Tuesday-Blitz-October-17-2023"]
[Site "Chess.com"]
[Date "2023.10.17"]
[Round "10"]
[White "Sacbutt"]
[Black "szachmistrz2500"]
[Result "1-0"]
[WhiteElo "2253"]
[BlackElo "2408"]
[TimeControl "180+1"]
[EndTime "15:50:19 PDT"]
[Termination "Sacbutt won by checkmate"]

1. e4 {[%clk 0:03:00.9]} 1... c5 {[%clk 0:02:58.2]} 2. Nf3 {[%clk 0:03:00.4]}
2... e6 {[%clk 0:02:58.5]} 3. d4 {[%clk 0:02:59.9]} 3... cxd4 {[%clk 0:02:59]}
4. c3 {[%clk 0:03:00.7]} 4... dxc3 {[%clk 0:02:55.7]} 5. Nxc3 {[%clk 0:03:01.6]}
5... Nc6 {[%clk 0:02:55.2]} 6. Bc4 {[%clk 0:03:02]} 6... a6 {[%clk 0:02:54.7]}
7. O-O {[%clk 0:03:01.3]} 7... Nge7 {[%clk 0:02:55.2]} 8. Bg5 {[%clk 0:03:00.5]}
8... f6 {[%clk 0:02:54.8]} 9. Bh4 {[%clk 0:02:59]} 9... b5 {[%clk 0:02:53.7]}
10. Bb3 {[%clk 0:02:58.1]} 10... Ng6 {[%clk 0:02:50]} 11. Bg3 {[%clk 0:02:57.6]}
11... Be7 {[%clk 0:02:44.9]} 12. Qe2 {[%clk 0:02:55.7]} 12... Na5 {[%clk
0:02:43.6]} 13. Bc2 {[%clk 0:02:51.9]} 13... O-O {[%clk 0:02:43]} 14. Rad1
{[%clk 0:02:51.6]} 14... Bb7 {[%clk 0:02:41.6]} 15. Nd4 {[%clk 0:02:44.6]} 15...
Qb6 {[%clk 0:02:37.5]} 16. Kh1 {[%clk 0:02:35.7]} 16... Nc4 {[%clk 0:02:33.2]}
17. Bb3 {[%clk 0:02:28.9]} 17... Rac8 {[%clk 0:02:25.6]} 18. f4 {[%clk
0:02:25.8]} 18... Bc5 {[%clk 0:02:15.8]} 19. Nf3 {[%clk 0:02:22.4]} 19... Ne3
{[%clk 0:02:13.3]} 20. f5 {[%clk 0:02:21.3]} 20... Nxf1 {[%clk 0:02:10.6]} 21.
Rxf1 {[%clk 0:02:11.1]} 21... Ne7 {[%clk 0:02:07.7]} 22. Qd3 {[%clk 0:01:49.3]}
22... Rfd8 {[%clk 0:02:02.5]} 23. Nh4 {[%clk 0:01:24.1]} 23... d5 {[%clk
0:01:57.8]} 24. fxe6 {[%clk 0:01:09.6]} 24... dxe4 {[%clk 0:01:57.1]} 25. Qe2
{[%clk 0:01:05.8]} 25... Qc6 {[%clk 0:01:45.2]} 26. Nf5 {[%clk 0:01:02.1]} 26...
e3 {[%clk 0:01:31.6]} 27. Rg1 {[%clk 0:00:57.5]} 27... Rd2 {[%clk 0:01:30]} 28.
Qg4 {[%clk 0:00:57.5]} 28... Nxf5 {[%clk 0:01:22.1]} 29. Qxf5 {[%clk 0:00:45.8]}
29... Qxg2+ {[%clk 0:00:51.2]} 30. Rxg2 {[%clk 0:00:43.2]} 30... Bxg2+ {[%clk
0:00:51.2]} 31. Kg1 {[%clk 0:00:42.9]} 31... e2+ {[%clk 0:00:50.9]} 32. Qxc5
{[%clk 0:00:32.5]} 32... Rxc5 {[%clk 0:00:31.2]} 33. e7+ {[%clk 0:00:31.1]}
33... Kh8 {[%clk 0:00:31.5]} 34. e8=Q# {[%clk 0:00:30.6]} 1-0

[Event "Late-Titled-Tuesday-Blitz-October-17-2023"]
[Site "Chess.com"]
[Date "2023.10.17"]
[Round "10"]
[White "Predator0608"]
[Black "effefe"]
[Result "1-0"]
[WhiteElo "2496"]
[BlackElo "2350"]
[TimeControl "180+1"]
[EndTime "15:50:25 PDT"]
[Termination "Predator0608 won on time"]

1. e4 {[%clk 0:03:00.9]} 1... c5 {[%clk 0:02:58.9]} 2. Nf3 {[%clk 0:03:00.4]}
2... d6 {[%clk 0:02:59.5]} 3. d4 {[%clk 0:03:00.1]} 3... cxd4 {[%clk 0:03:00.4]}
4. Nxd4 {[%clk 0:02:59.8]} 4... Nf6 {[%clk 0:03:01]} 5. Nc3 {[%clk 0:02:59.5]}
5... g6 {[%clk 0:03:01.3]} 6. Be3 {[%clk 0:02:59.2]} 6... Bg7 {[%clk 0:03:01.6]}
7. f3 {[%clk 0:02:59.1]} 7... O-O {[%clk 0:03:02.2]} 8. Bc4 {[%clk 0:02:59.7]}
8... Nc6 {[%clk 0:03:02]} 9. Qd2 {[%clk 0:02:59.5]} 9... Na5 {[%clk 0:02:59.6]}
10. Bb3 {[%clk 0:02:27.1]} 10... Bd7 {[%clk 0:02:56.1]} 11. h4 {[%clk
0:02:22.9]} 11... Rc8 {[%clk 0:02:53.2]} 12. Bh6 {[%clk 0:02:17.5]} 12... Nc4
{[%clk 0:02:52.2]} 13. Bxc4 {[%clk 0:02:12.3]} 13... Rxc4 {[%clk 0:02:53.1]} 14.
Bxg7 {[%clk 0:02:12.5]} 14... Kxg7 {[%clk 0:02:53.2]} 15. h5 {[%clk 0:02:13.4]}
15... e5 {[%clk 0:02:09.1]} 16. hxg6 {[%clk 0:01:43.5]} 16... Rxd4 {[%clk
0:01:36.2]} 17. Qh6+ {[%clk 0:01:40.4]} 17... Kg8 {[%clk 0:01:29.5]} 18. g7
{[%clk 0:01:35.6]} 18... Re8 {[%clk 0:01:23.7]} 19. g4 {[%clk 0:01:35.6]} 19...
Qb6 {[%clk 0:00:12.7]} 20. Rb1 {[%clk 0:00:47.6]} 20... Bc6 {[%clk 0:00:01.1]}
21. Qxf6 {[%clk 0:00:31.5]} 1-0

[Event "Late-Titled-Tuesday-Blitz-October-17-2023"]
[Site "Chess.com"]
[Date "2023.10.17"]
[Round "10"]
[White "mfwagnerpeixoto"]
[Black "rdarruda"]
[Result "0-1"]
[WhiteElo "2341"]
[BlackElo "2465"]
[TimeControl "180+1"]
[EndTime "15:50:30 PDT"]
[Termination "rdarruda won by resignation"]

1. e4 {[%clk 0:02:48.3]} 1... c5 {[%clk 0:02:59.6]} 2. Nf3 {[%clk 0:02:48.1]}
2... Nc6 {[%clk 0:02:59.5]} 3. Bb5 {[%clk 0:02:48.2]} 3... g6 {[%clk 0:02:53.5]}
4. O-O {[%clk 0:02:47.2]} 4... Bg7 {[%clk 0:02:53.1]} 5. Re1 {[%clk 0:02:47.6]}
5... Nf6 {[%clk 0:02:51]} 6. Nc3 {[%clk 0:02:47.9]} 6... O-O {[%clk 0:02:47.9]}
7. e5 {[%clk 0:02:46.7]} 7... Ng4 {[%clk 0:02:47.9]} 8. Bxc6 {[%clk 0:02:45.2]}
8... bxc6 {[%clk 0:02:47.9]} 9. d3 {[%clk 0:02:41.1]} 9... d6 {[%clk 0:02:45.7]}
10. exd6 {[%clk 0:02:38.6]} 10... exd6 {[%clk 0:02:45.5]} 11. h3 {[%clk
0:02:31.7]} 11... Ne5 {[%clk 0:02:44.6]} 12. Nxe5 {[%clk 0:02:31.1]} 12... Bxe5
{[%clk 0:02:45.5]} 13. Ne4 {[%clk 0:02:22.8]} 13... f5 {[%clk 0:02:40.7]} 14.
Ng5 {[%clk 0:02:20.8]} 14... h6 {[%clk 0:02:33.6]} 15. Nf3 {[%clk 0:02:21]}
15... Bg7 {[%clk 0:02:32.8]} 16. c3 {[%clk 0:02:10.8]} 16... Re8 {[%clk
0:02:28.7]} 17. Qb3+ {[%clk 0:01:59]} 17... d5 {[%clk 0:02:20.8]} 18. Be3 {[%clk
0:01:47]} 18... Qd6 {[%clk 0:02:15.6]} 19. Qa3 {[%clk 0:01:38.1]} 19... Bf8
{[%clk 0:02:15]} 20. d4 {[%clk 0:01:25.8]} 20... cxd4 {[%clk 0:02:10.2]} 21.
Qxd6 {[%clk 0:01:26.7]} 21... Bxd6 {[%clk 0:02:09.6]} 22. Nxd4 {[%clk
0:01:24.6]} 22... f4 {[%clk 0:02:01.8]} 23. Bd2 {[%clk 0:01:21.7]} 23... Rxe1+
{[%clk 0:02:01.7]} 24. Rxe1 {[%clk 0:01:22.2]} 24... Bd7 {[%clk 0:02:02]} 25. b4
{[%clk 0:01:15.9]} 25... a5 {[%clk 0:01:58.7]} 26. bxa5 {[%clk 0:00:52]} 26...
Rxa5 {[%clk 0:01:57.1]} 27. Ra1 {[%clk 0:00:42.2]} 27... Ra4 {[%clk 0:01:54.8]}
28. Nb3 {[%clk 0:00:29]} 28... g5 {[%clk 0:01:50.3]} 29. Kf1 {[%clk 0:00:28.3]}
29... Bc8 {[%clk 0:01:43.5]} 30. Kg1 {[%clk 0:00:26.3]} 30... c5 {[%clk
0:01:35.9]} 31. Nc1 {[%clk 0:00:23.2]} 31... Bf5 {[%clk 0:01:31.5]} 32. Nb3
{[%clk 0:00:21.7]} 32... Bc2 {[%clk 0:01:29.7]} 33. Re1 {[%clk 0:00:15.4]} 33...
Rxa2 {[%clk 0:01:27.5]} 34. Nc1 {[%clk 0:00:15]} 34... Ra1 {[%clk 0:01:25.7]}
35. Re6 {[%clk 0:00:14.8]} 35... Bf8 {[%clk 0:01:25.3]} 36. Kh2 {[%clk
0:00:12.9]} 36... Rb1 {[%clk 0:01:16.4]} 37. Re8 {[%clk 0:00:12.3]} 37... Rb2
{[%clk 0:01:12.8]} 38. Rd8 {[%clk 0:00:11]} 38... Be4 {[%clk 0:01:10.8]} 39. Be1
{[%clk 0:00:10.6]} 39... c4 {[%clk 0:01:06.6]} 40. Rd7 {[%clk 0:00:07.7]} 40...
Rc2 {[%clk 0:01:06.2]} 0-1

[Event "Late-Titled-Tuesday-Blitz-October-17-2023"]
[Site "Chess.com"]
[Date "2023.10.17"]
[Round "10"]
[White "karinachess1"]
[Black "venturov"]
[Result "1-0"]
[WhiteElo "2626"]
[BlackElo "2481"]
[TimeControl "180+1"]
[EndTime "15:50:42 PDT"]
[Termination "karinachess1 won by resignation"]

1. d4 {[%clk 0:03:00.9]} 1... Nf6 {[%clk 0:02:59.5]} 2. c4 {[%clk 0:03:01.1]}
2... d6 {[%clk 0:02:59.7]} 3. Nf3 {[%clk 0:03:00.4]} 3... g6 {[%clk 0:02:59.9]}
4. Nc3 {[%clk 0:02:59.3]} 4... Nbd7 {[%clk 0:02:59.6]} 5. g3 {[%clk 0:02:58.8]}
5... Bg7 {[%clk 0:02:59.9]} 6. Bg2 {[%clk 0:02:59.1]} 6... O-O {[%clk
0:03:00.6]} 7. O-O {[%clk 0:02:59.4]} 7... e5 {[%clk 0:03:01.4]} 8. e4 {[%clk
0:02:59.9]} 8... exd4 {[%clk 0:03:00.6]} 9. Nxd4 {[%clk 0:03:00]} 9... Re8
{[%clk 0:03:01.5]} 10. h3 {[%clk 0:02:57.7]} 10... Nc5 {[%clk 0:03:01.9]} 11.
Re1 {[%clk 0:02:55]} 11... Bd7 {[%clk 0:03:02.4]} 12. b4 {[%clk 0:02:27.8]}
12... Ne6 {[%clk 0:03:01.3]} 13. Be3 {[%clk 0:02:27.6]} 13... a5 {[%clk
0:02:44.7]} 14. a3 {[%clk 0:02:25.4]} 14... axb4 {[%clk 0:02:38.1]} 15. axb4
{[%clk 0:02:26.3]} 15... Rxa1 {[%clk 0:02:38.4]} 16. Qxa1 {[%clk 0:02:27]} 16...
c5 {[%clk 0:02:39.2]} 17. Nxe6 {[%clk 0:02:15.5]} 17... Bxe6 {[%clk 0:02:31.7]}
18. bxc5 {[%clk 0:02:06.7]} 18... Bxc4 {[%clk 0:02:21.5]} 19. Qa4 {[%clk
0:01:44.7]} 19... Bd3 {[%clk 0:02:06.3]} 20. Rd1 {[%clk 0:01:32.1]} 20... dxc5
{[%clk 0:01:39.6]} 21. Bxc5 {[%clk 0:01:17.3]} 21... Qd7 {[%clk 0:01:22.6]} 22.
Qb4 {[%clk 0:01:11.4]} 22... Rc8 {[%clk 0:00:57.2]} 23. e5 {[%clk 0:00:59.1]}
23... Nh5 {[%clk 0:00:46.7]} 24. Nd5 {[%clk 0:00:56.2]} 24... Be2 {[%clk
0:00:11.7]} 25. Rd2 {[%clk 0:00:54.6]} 25... Qb5 {[%clk 0:00:03]} 26. Qxb5
{[%clk 0:00:53]} 26... Bxb5 {[%clk 0:00:03.9]} 27. Ne7+ {[%clk 0:00:53.6]} 27...
Kh8 {[%clk 0:00:03.7]} 28. Nxc8 {[%clk 0:00:54.1]} 28... Bxe5 {[%clk 0:00:02.9]}
29. Bxb7 {[%clk 0:00:51.4]} 29... Nf6 {[%clk 0:00:02.3]} 30. Bd4 {[%clk
0:00:43.7]} 30... Bxd4 {[%clk 0:00:01.8]} 31. Rxd4 {[%clk 0:00:44.6]} 31... Bd7
{[%clk 0:00:01.1]} 32. Nd6 {[%clk 0:00:42.5]} 32... Bxh3 {[%clk 0:00:01.5]} 33.
Nxf7+ {[%clk 0:00:42.1]} 33... Kg7 {[%clk 0:00:02.4]} 34. Ng5 {[%clk 0:00:41.5]}
34... Kh6 {[%clk 0:00:02.7]} 35. Nxh3 {[%clk 0:00:41.3]} 1-0

[Event "Late-Titled-Tuesday-Blitz-October-17-2023"]
[Site "Chess.com"]
[Date "2023.10.17"]
[Round "10"]
[White "becemix"]
[Black "Bala-Afiada"]
[Result "1-0"]
[WhiteElo "2423"]
[BlackElo "1917"]
[TimeControl "180+1"]
[EndTime "15:50:44 PDT"]
[Termination "becemix won by resignation"]

1. d4 {[%clk 0:03:00.9]} 1... d5 {[%clk 0:02:58.4]} 2. Nc3 {[%clk 0:03:01.5]}
2... Nf6 {[%clk 0:02:57.3]} 3. Bf4 {[%clk 0:03:02.1]} 3... c6 {[%clk 0:02:55.8]}
4. e3 {[%clk 0:03:02.6]} 4... Nbd7 {[%clk 0:02:56]} 5. Nf3 {[%clk 0:03:02.5]}
5... e6 {[%clk 0:02:55]} 6. Bd3 {[%clk 0:03:03.1]} 6... Be7 {[%clk 0:02:55.3]}
7. O-O {[%clk 0:03:03.6]} 7... O-O {[%clk 0:02:55.6]} 8. Re1 {[%clk 0:02:59.3]}
8... Nh5 {[%clk 0:02:55.2]} 9. Ne5 {[%clk 0:02:51.4]} 9... Nxf4 {[%clk
0:02:50.4]} 10. exf4 {[%clk 0:02:50.3]} 10... Nxe5 {[%clk 0:02:42.8]} 11. Rxe5
{[%clk 0:02:37.4]} 11... Bf6 {[%clk 0:02:33.8]} 12. Re3 {[%clk 0:02:29.1]} 12...
g6 {[%clk 0:02:06.7]} 13. Ne2 {[%clk 0:02:29.3]} 13... Qb6 {[%clk 0:01:59.8]}
14. c3 {[%clk 0:02:07.9]} 14... c5 {[%clk 0:01:50.5]} 15. dxc5 {[%clk
0:01:50.8]} 15... Qxc5 {[%clk 0:01:51.4]} 16. Bc2 {[%clk 0:01:46.7]} 16... Bd7
{[%clk 0:01:38.6]} 17. Rg3 {[%clk 0:01:44.9]} 17... Bc6 {[%clk 0:01:33.3]} 18.
Nd4 {[%clk 0:01:37]} 18... Rad8 {[%clk 0:01:24.4]} 19. f5 {[%clk 0:01:34.9]}
19... Bxd4 {[%clk 0:00:58.5]} 20. cxd4 {[%clk 0:01:32.3]} 20... Qe7 {[%clk
0:00:53.2]} 21. fxg6 {[%clk 0:01:27.4]} 21... fxg6 {[%clk 0:00:53.6]} 22. Qh5
{[%clk 0:01:05.2]} 22... Be8 {[%clk 0:00:28.9]} 23. Re1 {[%clk 0:00:51.3]} 23...
Rc8 {[%clk 0:00:21.3]} 24. Bb3 {[%clk 0:00:46]} 24... Qf6 {[%clk 0:00:19.6]} 25.
Qe2 {[%clk 0:00:44.7]} 25... Bf7 {[%clk 0:00:17.7]} 26. Rf3 {[%clk 0:00:43.6]}
26... Qg7 {[%clk 0:00:17.7]} 27. Qb5 {[%clk 0:00:39.3]} 27... Be8 {[%clk
0:00:15.1]} 28. Rxf8+ {[%clk 0:00:34.7]} 28... Kxf8 {[%clk 0:00:16]} 29. Qb4+
{[%clk 0:00:34.2]} 29... Kg8 {[%clk 0:00:15.9]} 30. Qd6 {[%clk 0:00:33.7]} 30...
Qxd4 {[%clk 0:00:12.7]} 31. Qxe6+ {[%clk 0:00:32.3]} 31... Bf7 {[%clk
0:00:13.3]} 32. Qxc8+ {[%clk 0:00:31.4]} 32... Kg7 {[%clk 0:00:14]} 33. Qc3
{[%clk 0:00:31]} 33... Qxc3 {[%clk 0:00:12.4]} 34. bxc3 {[%clk 0:00:31.9]} 1-0

[Event "Late-Titled-Tuesday-Blitz-October-17-2023"]
[Site "Chess.com"]
[Date "2023.10.17"]
[Round "10"]
[White "Zhigalko_Sergei"]
[Black "GianmarcoVaR"]
[Result "1-0"]
[WhiteElo "2944"]
[BlackElo "2700"]
[TimeControl "180+1"]
[EndTime "15:50:48 PDT"]
[Termination "Zhigalko_Sergei won by checkmate"]

1. e4 {[%clk 0:03:00.9]} 1... c5 {[%clk 0:02:56.4]} 2. c3 {[%clk 0:02:59.8]}
2... Nf6 {[%clk 0:02:55.3]} 3. e5 {[%clk 0:03:00.1]} 3... Nd5 {[%clk 0:02:55.3]}
4. Nf3 {[%clk 0:03:01]} 4... d6 {[%clk 0:02:55.5]} 5. Bc4 {[%clk 0:03:00.9]}
5... Nb6 {[%clk 0:02:54.6]} 6. Bb3 {[%clk 0:03:01.1]} 6... Nc6 {[%clk
0:02:54.7]} 7. exd6 {[%clk 0:03:01.1]} 7... Qxd6 {[%clk 0:02:54.6]} 8. O-O
{[%clk 0:03:01.4]} 8... Be6 {[%clk 0:02:48.4]} 9. Bxe6 {[%clk 0:03:01.4]} 9...
Qxe6 {[%clk 0:02:45.7]} 10. a4 {[%clk 0:03:02.3]} 10... Qd7 {[%clk 0:02:41.3]}
11. a5 {[%clk 0:03:01.9]} 11... Nd5 {[%clk 0:02:41.5]} 12. d4 {[%clk 0:02:58.6]}
12... e6 {[%clk 0:02:40.4]} 13. a6 {[%clk 0:02:56.5]} 13... b6 {[%clk
0:02:13.1]} 14. Ne5 {[%clk 0:02:54.3]} 14... Qc7 {[%clk 0:02:09]} 15. Qa4 {[%clk
0:02:26.1]} 15... Rc8 {[%clk 0:02:09.1]} 16. c4 {[%clk 0:02:21.3]} 16... Nb4
{[%clk 0:02:03.7]} 17. Bf4 {[%clk 0:02:20.8]} 17... Bd6 {[%clk 0:02:04.1]} 18.
Nc3 {[%clk 0:02:19.4]} 18... O-O {[%clk 0:01:43.6]} 19. Nb5 {[%clk 0:02:17.4]}
19... Bxe5 {[%clk 0:01:36.2]} 20. Nxc7 {[%clk 0:02:13.2]} 20... Bxf4 {[%clk
0:01:33.4]} 21. Nb5 {[%clk 0:02:09.1]} 21... Rcd8 {[%clk 0:01:19.1]} 22. dxc5
{[%clk 0:01:58.1]} 22... bxc5 {[%clk 0:01:20]} 23. Rad1 {[%clk 0:01:57.6]} 23...
Rb8 {[%clk 0:01:17.1]} 24. Rd7 {[%clk 0:01:32.2]} 24... Rb6 {[%clk 0:01:16.4]}
25. Nxa7 {[%clk 0:00:43.8]} 25... Rxa6 {[%clk 0:01:16.1]} 26. Qxa6 {[%clk
0:00:42.7]} 26... Nxa6 {[%clk 0:01:16.5]} 27. Nxc6 {[%clk 0:00:43.1]} 27... Nb8
{[%clk 0:00:53.1]} 28. Ne7+ {[%clk 0:00:38.9]} 28... Kh8 {[%clk 0:00:52.3]} 29.
Rb7 {[%clk 0:00:39.8]} 29... Bg5 {[%clk 0:00:46.2]} 30. Ra1 {[%clk 0:00:25.4]}
30... Bxe7 {[%clk 0:00:43.5]} 31. Rxe7 {[%clk 0:00:25.4]} 31... Nc6 {[%clk
0:00:44.4]} 32. Rc7 {[%clk 0:00:25.3]} 32... Nd4 {[%clk 0:00:44.3]} 33. Raa7
{[%clk 0:00:17.2]} 33... Kg8 {[%clk 0:00:40.1]} 34. Rxc5 {[%clk 0:00:16.1]}
34... g5 {[%clk 0:00:39.2]} 35. Rxg5+ {[%clk 0:00:14.2]} 35... Kh8 {[%clk
0:00:39.1]} 36. Rc5 {[%clk 0:00:13.9]} 36... Rb8 {[%clk 0:00:38.7]} 37. Rxf7
{[%clk 0:00:11]} 37... Kg8 {[%clk 0:00:37.4]} 38. Rd7 {[%clk 0:00:09]} 38...
Rxb2 {[%clk 0:00:37.5]} 39. Rc8# {[%clk 0:00:08.6]} 1-0

[Event "Late-Titled-Tuesday-Blitz-October-17-2023"]
[Site "Chess.com"]
[Date "2023.10.17"]
[Round "10"]
[White "Alimpic"]
[Black "Hasangatin_Ramil"]
[Result "0-1"]
[WhiteElo "2524"]
[BlackElo "2722"]
[TimeControl "180+1"]
[EndTime "15:50:59 PDT"]
[Termination "Hasangatin_Ramil won on time"]

1. Nf3 {[%clk 0:03:00.9]} 1... d5 {[%clk 0:02:58.6]} 2. g3 {[%clk 0:03:00.6]}
2... Nc6 {[%clk 0:02:58.8]} 3. d4 {[%clk 0:03:00.2]} 3... Bf5 {[%clk 0:02:58.5]}
4. Bg2 {[%clk 0:02:59.7]} 4... Nb4 {[%clk 0:02:58.6]} 5. Na3 {[%clk 0:03:00]}
5... e6 {[%clk 0:02:58.8]} 6. O-O {[%clk 0:02:58.6]} 6... Nf6 {[%clk 0:02:58.4]}
7. c3 {[%clk 0:02:58.7]} 7... Nc6 {[%clk 0:02:57.8]} 8. Nc2 {[%clk 0:02:59]}
8... Be7 {[%clk 0:02:57.1]} 9. Nce1 {[%clk 0:02:55.9]} 9... O-O {[%clk
0:02:53.9]} 10. Nd3 {[%clk 0:02:56.3]} 10... Be4 {[%clk 0:02:54]} 11. Re1 {[%clk
0:02:46]} 11... h6 {[%clk 0:02:51.7]} 12. Nd2 {[%clk 0:02:44.4]} 12... Bxg2
{[%clk 0:02:50.9]} 13. Kxg2 {[%clk 0:02:45.3]} 13... Ne4 {[%clk 0:02:49.9]} 14.
f3 {[%clk 0:02:31.6]} 14... Nxd2 {[%clk 0:02:32.7]} 15. Bxd2 {[%clk 0:02:31.9]}
15... f5 {[%clk 0:02:32.8]} 16. e4 {[%clk 0:02:20.1]} 16... fxe4 {[%clk
0:02:26.1]} 17. fxe4 {[%clk 0:02:20.3]} 17... dxe4 {[%clk 0:02:26.6]} 18. Rxe4
{[%clk 0:02:20.7]} 18... Qd5 {[%clk 0:02:27]} 19. Qe2 {[%clk 0:02:19.5]} 19...
e5 {[%clk 0:02:27.1]} 20. Nxe5 {[%clk 0:02:06.7]} 20... Nxe5 {[%clk 0:02:26.4]}
21. dxe5 {[%clk 0:02:07.4]} 21... Bc5 {[%clk 0:02:26.8]} 22. Bf4 {[%clk
0:01:39.8]} 22... g5 {[%clk 0:02:20.5]} 23. Rd1 {[%clk 0:01:37.5]} 23... Qc6
{[%clk 0:02:14.2]} 24. Qc4+ {[%clk 0:01:01.2]} 24... Kg7 {[%clk 0:02:07.1]} 25.
Rd5 {[%clk 0:00:58.4]} 25... Bb6 {[%clk 0:02:01.1]} 26. Qxc6 {[%clk 0:00:55.1]}
26... bxc6 {[%clk 0:02:01]} 27. Rd7+ {[%clk 0:00:55.5]} 27... Kg6 {[%clk
0:02:00]} 28. Be3 {[%clk 0:00:53.7]} 28... Kf5 {[%clk 0:01:59.3]} 29. Bxb6
{[%clk 0:00:47.5]} 29... Kxe4 {[%clk 0:01:59.2]} 30. Bxc7 {[%clk 0:00:46.7]}
30... g4 {[%clk 0:01:52.7]} 31. e6 {[%clk 0:00:37.1]} 31... Rae8 {[%clk
0:01:38.7]} 32. e7 {[%clk 0:00:34.7]} 32... Rf7 {[%clk 0:01:37]} 33. Bd8 {[%clk
0:00:34.8]} 33... Ke3 {[%clk 0:01:33.9]} 34. Rxa7 {[%clk 0:00:11.8]} 34... Ke2
{[%clk 0:01:33.3]} 35. Kg1 {[%clk 0:00:12.5]} 35... Ke1 {[%clk 0:01:06.6]} 36.
Rd7 {[%clk 0:00:04.9]} 36... Rf1+ {[%clk 0:01:03.9]} 37. Kg2 {[%clk 0:00:05.2]}
37... Rf2+ {[%clk 0:01:03.8]} 38. Kg1 {[%clk 0:00:05.6]} 38... Rxb2 {[%clk
0:00:59.3]} 39. a4 {[%clk 0:00:05.1]} 39... Rc2 {[%clk 0:00:51.3]} 40. Rd3
{[%clk 0:00:04.2]} 40... Ke2 {[%clk 0:00:50.9]} 41. Rd7 {[%clk 0:00:02.3]} 41...
Rxc3 {[%clk 0:00:50.4]} 42. a5 {[%clk 0:00:03.2]} 42... c5 {[%clk 0:00:49]} 0-1